[Event "2026 European Womens Championship"]
[Site "Batumi, GE"]
[Date "2026.05.30"]
[Round "6"]
[White "Pogorelskikh, Sofia"]
[Black "Narva, Mai"]
[Result "1/2-1/2"]
[Board "56"]
[TimeControl "5400+30"]
[WhiteFideId "44164548"]
[BlackFideId "4500512"]
[WhiteElo "2284"]
[BlackElo "2426"]
[WhiteTitle "WGM"]
[BlackTitle "IM"]
[WhiteClock "0:05:00"]
[BlackClock "0:21:18"]
[Variant "Standard"]

1. e4 {[%clk 1:30:57]}  c5 {[%clk 1:29:25]} 2. Nf3 {[%clk 1:31:16]}  d6 {[%clk 1:29:45]} 3. d4 {[%clk 1:31:36]}  cxd4 {[%clk 1:30:09]}
4. Nxd4 {[%clk 1:31:58]}  Nf6 {[%clk 1:30:32]} 5. Nc3 {[%clk 1:32:18]}  a6 {[%clk 1:30:56]} 6. Bc4 {[%clk 1:32:34]}  e6 {[%clk 1:31:07]}
7. Be3 {[%clk 1:32:35]}  Be7 {[%clk 1:30:55]} 8. Bb3 {[%clk 1:25:43]}  b5 {[%clk 1:30:01]} 9. a3 {[%clk 1:25:23]}  O-O {[%clk 1:29:44]}
10. Qe2 {[%clk 1:24:18]}  Bb7 {[%clk 1:29:34]} 11. f3 {[%clk 1:19:40]}  Nbd7 {[%clk 1:16:02]} 12. O-O-O {[%clk 1:18:38]}  Rc8 {[%clk 1:15:46]}
13. Qe1 {[%clk 1:14:14]}  Ne5 {[%clk 1:15:15]} 14. g4 {[%clk 1:09:20]}  Nc4 {[%clk 1:14:09]} 15. Bxc4 {[%clk 1:08:13]}  Rxc4 {[%clk 1:13:51]}
16. g5 {[%clk 1:05:57]}  Nd7 {[%clk 1:13:40]} 17. h4 {[%clk 1:04:48]}  Re8 {[%clk 1:10:34]} 18. Kb1 {[%clk 0:56:48]}  Nf8 {[%clk 0:59:42]}
19. Qd2 {[%clk 0:48:35]}  Qc7 {[%clk 0:52:35]} 20. h5 {[%clk 0:46:38]}  b4 {[%clk 0:48:32]} 21. axb4 {[%clk 0:45:04]}  d5 {[%clk 0:48:05]}
22. Na2 {[%clk 0:42:13]}  e5 {[%clk 0:42:15]} 23. Nf5 {[%clk 0:40:56]}  d4 {[%clk 0:41:43]} 24. Bf2 {[%clk 0:35:12]}  Rc8 {[%clk 0:36:50]}
25. Rc1 {[%clk 0:30:14]}  Ne6 {[%clk 0:36:08]} 26. Rhg1 {[%clk 0:24:52]}  Bf8 {[%clk 0:26:37]} 27. g6 {[%clk 0:23:06]}  a5 {[%clk 0:26:02]}
28. Bh4 {[%clk 0:15:34]}  fxg6 {[%clk 0:11:36]} 29. hxg6 {[%clk 0:15:39]}  hxg6 {[%clk 0:11:25]} 30. Rxg6 {[%clk 0:15:12]}  Nf4 {[%clk 0:11:30]}
31. Rg4 {[%clk 0:13:27]}  Kf7 {[%clk 0:07:03]} 32. Be7 {[%clk 0:11:54]}  g6 {[%clk 0:05:12]} 33. Bxf8 {[%clk 0:11:47]}  Rxf8 {[%clk 0:05:02]}
34. Rh1 {[%clk 0:09:00]}  Ke8 {[%clk 0:04:52]} 35. Nh4 {[%clk 0:06:23]}  Rc6 {[%clk 0:03:50]} 36. bxa5 {[%clk 0:05:41]}  Bc8 {[%clk 0:03:36]}
37. Rg5 {[%clk 0:04:43]}  Rh8 {[%clk 0:02:44]} 38. Nb4 {[%clk 0:04:19]}  Rc5 {[%clk 0:01:50]} 39. Nd3 {[%clk 0:00:39]}  Nxd3 {[%clk 0:01:30]}
40. cxd3 {[%clk 0:00:34]}  Be6 {[%clk 0:00:36]} 41. Rxg6 {[%clk 0:23:38]}  Ba2+ {[%clk 0:21:24]} 42. Kxa2 {[%clk 0:22:10]}  Rxa5+ {[%clk 0:21:20]}
43. Kb1 {[%clk 0:14:27]}  Qa7 {[%clk 0:21:36]} 44. Kc2 {[%clk 0:04:54]}  Qc7+ {[%clk 0:20:39]} 45. Kb1 {[%clk 0:04:59]}  Qa7 {[%clk 0:21:04]}
46. Kc2 {[%clk 0:04:49]}  Qc7+ {[%clk 0:21:18]} 47. Kb1 {[%clk 0:05:00]} 1/2-1/2

[Event "2026 European Womens Championship"]
[Site "Batumi, GE"]
[Date "2026.05.30"]
[Round "6"]
[White "Hrebenshchykova, Yelyzaveta"]
[Black "Wagner, Dinara"]
[Result "1/2-1/2"]
[Board "57"]
[TimeControl "5400+30"]
[WhiteFideId "14159899"]
[BlackFideId "24157570"]
[WhiteElo "2309"]
[BlackElo "2408"]
[WhiteTitle "WGM"]
[BlackTitle "IM"]
[WhiteClock "0:29:58"]
[BlackClock "0:45:59"]
[Variant "Standard"]

1. e4 {[%clk 1:27:26]}  c5 {[%clk 1:30:54]} 2. Nf3 {[%clk 1:27:52]}  Nc6 {[%clk 1:31:17]} 3. d4 {[%clk 1:22:46]}  cxd4 {[%clk 1:31:40]}
4. Nxd4 {[%clk 1:23:14]}  Nf6 {[%clk 1:32:04]} 5. Nc3 {[%clk 1:23:40]}  e5 {[%clk 1:32:08]} 6. Ndb5 {[%clk 1:20:26]}  d6 {[%clk 1:32:28]}
7. Bg5 {[%clk 1:19:30]}  a6 {[%clk 1:32:39]} 8. Na3 {[%clk 1:19:56]}  b5 {[%clk 1:33:04]} 9. Nd5 {[%clk 1:20:12]}  Be7 {[%clk 1:33:26]}
10. Bxf6 {[%clk 1:17:31]}  Bxf6 {[%clk 1:33:25]} 11. c3 {[%clk 1:12:59]}  O-O {[%clk 1:33:33]} 12. Nc2 {[%clk 1:13:26]}  Be6 {[%clk 1:33:33]}
13. a4 {[%clk 0:55:52]}  Ne7 {[%clk 1:33:41]} 14. Nce3 {[%clk 0:44:19]}  Bg5 {[%clk 1:23:57]} 15. Be2 {[%clk 0:44:44]}  Bxe3 {[%clk 0:49:40]}
16. Nxe3 {[%clk 0:45:10]}  d5 {[%clk 0:50:05]} 17. exd5 {[%clk 0:42:41]}  Nxd5 {[%clk 0:50:29]} 18. Nxd5 {[%clk 0:40:25]}  Qxd5 {[%clk 0:49:29]}
19. Qxd5 {[%clk 0:30:48]}  Bxd5 {[%clk 0:49:52]} 20. axb5 {[%clk 0:31:14]}  axb5 {[%clk 0:49:58]} 21. O-O {[%clk 0:31:40]}  Bc4 {[%clk 0:45:16]}
22. Bxc4 {[%clk 0:29:17]}  bxc4 {[%clk 0:45:37]} 23. Rae1 {[%clk 0:29:45]}  Rfb8 {[%clk 0:42:38]} 24. Rxe5 {[%clk 0:28:58]}  Rxb2 {[%clk 0:43:05]}
25. Rc5 {[%clk 0:29:19]}  Rc2 {[%clk 0:43:30]} 26. Rxc4 {[%clk 0:29:44]}  g6 {[%clk 0:43:54]} 27. h4 {[%clk 0:27:54]}  Ra3 {[%clk 0:44:12]}
28. g3 {[%clk 0:28:19]}  Raxc3 {[%clk 0:44:38]} 29. Rxc3 {[%clk 0:28:45]}  Rxc3 {[%clk 0:45:05]} 30. Kg2 {[%clk 0:29:10]}  h5 {[%clk 0:45:32]}
31. Ra1 {[%clk 0:29:36]}  Kg7 {[%clk 0:45:59]} 32. Ra6 {[%clk 0:29:58]} 1/2-1/2

[Event "2026 European Womens Championship"]
[Site "Batumi, GE"]
[Date "2026.05.30"]
[Round "6"]
[White "Salimova, Nurgyul"]
[Black "Khukhashvili, Sopiko"]
[Result "1-0"]
[Board "58"]
[TimeControl "5400+30"]
[WhiteFideId "2915138"]
[BlackFideId "13602055"]
[WhiteElo "2404"]
[BlackElo "2329"]
[WhiteTitle "IM"]
[BlackTitle "IM"]
[WhiteClock "0:02:20"]
[BlackClock "0:15:17"]
[Variant "Standard"]

1. c4 {[%clk 1:30:39]}  e5 {[%clk 1:30:07]} 2. Nc3 {[%clk 1:30:21]}  Bb4 {[%clk 1:30:13]} 3. Nd5 {[%clk 1:30:00]}  Be7 {[%clk 1:30:39]}
4. Nf3 {[%clk 1:27:47]}  Nc6 {[%clk 1:31:01]} 5. d4 {[%clk 1:26:01]}  d6 {[%clk 1:30:38]} 6. g3 {[%clk 1:20:58]}  e4 {[%clk 1:27:24]}
7. Nd2 {[%clk 1:19:52]}  f5 {[%clk 1:27:35]} 8. Nb1 {[%clk 1:17:47]}  Nf6 {[%clk 1:27:16]} 9. Nbc3 {[%clk 1:16:58]}  O-O {[%clk 1:25:48]}
10. Bg2 {[%clk 1:16:21]}  Rf7 {[%clk 1:24:35]} 11. Nxe7+ {[%clk 1:14:21]}  Nxe7 {[%clk 1:23:40]} 12. d5 {[%clk 1:02:36]}  c6 {[%clk 1:19:27]}
13. dxc6 {[%clk 0:56:03]}  bxc6 {[%clk 1:19:49]} 14. O-O {[%clk 0:55:46]}  Be6 {[%clk 1:18:30]} 15. b3 {[%clk 0:53:58]}  d5 {[%clk 1:13:33]}
16. cxd5 {[%clk 0:52:26]}  Nexd5 {[%clk 1:13:43]} 17. Nxd5 {[%clk 0:46:47]}  Bxd5 {[%clk 1:08:35]} 18. Qd4 {[%clk 0:44:39]}  Qb6 {[%clk 1:08:01]}
19. Qc3 {[%clk 0:42:18]}  a5 {[%clk 1:08:11]} 20. Be3 {[%clk 0:32:36]}  Qb5 {[%clk 1:07:47]} 21. Rfe1 {[%clk 0:32:18]}  a4 {[%clk 1:05:45]}
22. Bd4 {[%clk 0:24:55]}  h6 {[%clk 0:56:02]} 23. b4 {[%clk 0:22:51]}  a3 {[%clk 0:56:10]} 24. e3 {[%clk 0:22:25]}  Ra4 {[%clk 0:54:24]}
25. Reb1 {[%clk 0:16:49]}  Bc4 {[%clk 0:54:16]} 26. Rc1 {[%clk 0:15:56]}  Qxb4 {[%clk 0:48:25]} 27. Qc2 {[%clk 0:15:21]}  Qa5 {[%clk 0:46:44]}
28. Bf1 {[%clk 0:12:53]}  Bxf1 {[%clk 0:38:35]} 29. Kxf1 {[%clk 0:13:18]}  f4 {[%clk 0:33:51]} 30. Qxc6 {[%clk 0:12:31]}  fxg3 {[%clk 0:31:58]}
31. hxg3 {[%clk 0:12:44]}  Rxd4 {[%clk 0:22:39]} 32. exd4 {[%clk 0:12:50]}  Qh5 {[%clk 0:22:57]} 33. Kg1 {[%clk 0:10:56]}  Rd7 {[%clk 0:19:00]}
34. Qe6+ {[%clk 0:10:48]}  Kh7 {[%clk 0:18:55]} 35. Rc5 {[%clk 0:11:02]}  Qf3 {[%clk 0:18:51]} 36. Qf5+ {[%clk 0:10:40]}  Qxf5 {[%clk 0:19:06]}
37. Rxf5 {[%clk 0:11:05]}  Rxd4 {[%clk 0:19:28]} 38. Ra5 {[%clk 0:11:10]}  Rd3 {[%clk 0:19:22]} 39. Re1 {[%clk 0:10:42]}  Kg6 {[%clk 0:14:46]}
40. Re3 {[%clk 0:07:04]}  Rd1+ {[%clk 0:11:39]} 41. Kg2 {[%clk 0:05:33]}  Rd2 {[%clk 0:11:50]} 42. Raxa3 {[%clk 0:05:14]}  h5 {[%clk 0:08:03]}
43. Ra6 {[%clk 0:01:49]}  Kf5 {[%clk 0:07:25]} 44. Rb3 {[%clk 0:23:09]}  Nd5 {[%clk 0:32:12]} 45. Kf1 {[%clk 0:17:23]}  e3 {[%clk 0:28:39]}
46. fxe3 {[%clk 0:13:25]}  Ke4 {[%clk 0:28:08]} 47. Kg1 {[%clk 0:06:09]}  Rd1+ {[%clk 0:26:41]} 48. Kf2 {[%clk 0:06:31]}  Rd2+ {[%clk 0:27:04]}
49. Kg1 {[%clk 0:06:59]}  Rd1+ {[%clk 0:27:05]} 50. Kg2 {[%clk 0:06:23]}  Rd2+ {[%clk 0:26:53]} 51. Kh3 {[%clk 0:04:00]}  g5 {[%clk 0:25:02]}
52. Ra4+ {[%clk 0:02:44]}  Kf5 {[%clk 0:18:46]} 53. g4+ {[%clk 0:00:52]}  hxg4+ {[%clk 0:16:44]} 54. Rxg4 {[%clk 0:01:14]}  Nf6 {[%clk 0:15:24]}
55. Rb5+ {[%clk 0:01:23]}  Ke6 {[%clk 0:15:52]} 56. Rgxg5 {[%clk 0:01:11]}  Rxa2 {[%clk 0:15:08]} 57. Rb6+ {[%clk 0:01:32]}  Ke7 {[%clk 0:15:16]}
58. Re5+ {[%clk 0:01:54]}  Kf7 {[%clk 0:15:17]} 59. Rf5 {[%clk 0:02:20]} 1-0

[Event "2026 European Womens Championship"]
[Site "Batumi, GE"]
[Date "2026.05.30"]
[Round "6"]
[White "Velikic, Adela"]
[Black "Badelka, Olga"]
[Result "0-1"]
[Board "59"]
[TimeControl "5400+30"]
[WhiteFideId "913553"]
[BlackFideId "13509926"]
[WhiteElo "2277"]
[BlackElo "2392"]
[WhiteTitle "WIM"]
[BlackTitle "IM"]
[WhiteClock "0:00:33"]
[BlackClock "0:33:06"]
[Variant "Standard"]

1. d4 {[%clk 1:30:21]}  Nf6 {[%clk 1:30:55]} 2. Nf3 {[%clk 1:30:45]}  e6 {[%clk 1:31:12]} 3. Bf4 {[%clk 1:31:07]}  h6 {[%clk 1:30:50]}
4. h3 {[%clk 1:24:04]}  b6 {[%clk 1:28:33]} 5. e3 {[%clk 1:24:00]}  Bb7 {[%clk 1:28:00]} 6. Bd3 {[%clk 1:24:06]}  Bd6 {[%clk 1:24:30]}
7. Bxd6 {[%clk 1:04:47]}  cxd6 {[%clk 1:24:55]} 8. Nbd2 {[%clk 0:59:13]}  d5 {[%clk 1:23:54]} 9. O-O {[%clk 0:48:57]}  O-O {[%clk 1:23:07]}
10. Re1 {[%clk 0:44:58]}  d6 {[%clk 1:13:35]} 11. a4 {[%clk 0:40:20]}  Nc6 {[%clk 1:05:45]} 12. c3 {[%clk 0:39:01]}  e5 {[%clk 1:03:56]}
13. Bb5 {[%clk 0:27:17]}  e4 {[%clk 1:04:06]} 14. Nh2 {[%clk 0:26:11]}  a5 {[%clk 1:02:03]} 15. Ng4 {[%clk 0:23:37]}  Nh7 {[%clk 0:54:38]}
16. f3 {[%clk 0:15:21]}  Ne7 {[%clk 0:53:52]} 17. fxe4 {[%clk 0:12:06]}  dxe4 {[%clk 0:54:12]} 18. Qb3 {[%clk 0:12:01]}  Kh8 {[%clk 0:53:24]}
19. Nf2 {[%clk 0:09:27]}  f5 {[%clk 0:53:11]} 20. Bf1 {[%clk 0:09:10]}  Nd5 {[%clk 0:45:03]} 21. Nc4 {[%clk 0:06:44]}  Rf6 {[%clk 0:37:59]}
22. Qa3 {[%clk 0:06:58]}  Rg6 {[%clk 0:37:56]} 23. b4 {[%clk 0:05:54]}  axb4 {[%clk 0:34:52]} 24. cxb4 {[%clk 0:06:19]}  Qh4 {[%clk 0:34:55]}
25. Qb2 {[%clk 0:02:00]}  Ng5 {[%clk 0:35:02]} 26. Kh1 {[%clk 0:02:19]}  Qg3 {[%clk 0:33:00]} 27. Qe2 {[%clk 0:00:33]}  Nf3 {[%clk 0:33:06]} 0-1

[Event "2026 European Womens Championship"]
[Site "Batumi, GE"]
[Date "2026.05.30"]
[Round "6"]
[White "Kirtadze, Anastasia"]
[Black "Buksa, Nataliya"]
[Result "0-1"]
[Board "60"]
[TimeControl "5400+30"]
[WhiteFideId "13622714"]
[BlackFideId "14123622"]
[WhiteElo "2233"]
[BlackElo "2392"]
[WhiteTitle "WIM"]
[BlackTitle "IM"]
[WhiteClock "0:30:25"]
[BlackClock "0:33:52"]
[Variant "Standard"]

1. e4 {[%clk 1:30:59]}  e5 {[%clk 1:28:57]} 2. Nf3 {[%clk 1:31:20]}  Nc6 {[%clk 1:29:09]} 3. d4 {[%clk 1:31:46]}  exd4 {[%clk 1:29:30]}
4. Nxd4 {[%clk 1:32:12]}  Nf6 {[%clk 1:29:57]} 5. Nxc6 {[%clk 1:32:37]}  bxc6 {[%clk 1:30:24]} 6. Nd2 {[%clk 1:33:01]}  d6 {[%clk 1:26:05]}
7. g3 {[%clk 1:31:24]}  g6 {[%clk 1:23:11]} 8. Bg2 {[%clk 1:30:38]}  Bg7 {[%clk 1:23:36]} 9. O-O {[%clk 1:29:13]}  O-O {[%clk 1:24:03]}
10. Nb3 {[%clk 1:27:11]}  Bd7 {[%clk 1:12:31]} 11. Na5 {[%clk 1:20:16]}  Qe8 {[%clk 1:10:23]} 12. Re1 {[%clk 1:17:35]}  Qe5 {[%clk 1:06:30]}
13. Nb3 {[%clk 1:07:03]}  Rfe8 {[%clk 0:56:26]} 14. c3 {[%clk 0:54:04]}  a5 {[%clk 0:52:32]} 15. Bf4 {[%clk 0:50:38]}  Qb5 {[%clk 0:46:46]}
16. a4 {[%clk 0:48:07]}  Qh5 {[%clk 0:47:11]} 17. f3 {[%clk 0:44:49]}  g5 {[%clk 0:41:03]} 18. Bd2 {[%clk 0:41:51]}  Qg6 {[%clk 0:37:18]}
19. g4 {[%clk 0:24:31]}  h5 {[%clk 0:35:17]} 20. h3 {[%clk 0:24:56]}  hxg4 {[%clk 0:29:40]} 21. hxg4 {[%clk 0:24:08]}  c5 {[%clk 0:29:02]}
22. c4 {[%clk 0:23:30]}  Nh7 {[%clk 0:29:01]} 23. Bc3 {[%clk 0:21:37]}  Bxc3 {[%clk 0:16:28]} 24. bxc3 {[%clk 0:22:05]}  Nf8 {[%clk 0:16:51]}
25. Nc1 {[%clk 0:15:04]}  Be6 {[%clk 0:16:37]} 26. Ne2 {[%clk 0:11:10]}  Qf6 {[%clk 0:15:08]} 27. Qd2 {[%clk 0:08:29]}  Bxc4 {[%clk 0:14:28]}
28. Ng3 {[%clk 0:08:11]}  Ng6 {[%clk 0:14:03]} 29. Bf1 {[%clk 0:05:10]}  Ne5 {[%clk 0:08:38]} 30. Bg2 {[%clk 0:05:26]}  Ng6 {[%clk 0:06:23]}
31. Bf1 {[%clk 0:02:46]}  Bxf1 {[%clk 0:06:23]} 32. Rxf1 {[%clk 0:03:08]}  Rab8 {[%clk 0:06:50]} 33. Nf5 {[%clk 0:02:15]}  Rb3 {[%clk 0:06:48]}
34. Rac1 {[%clk 0:00:50]}  Nf4 {[%clk 0:06:34]} 35. Qh2 {[%clk 0:00:35]}  Qh8 {[%clk 0:05:38]} 36. Qxh8+ {[%clk 0:00:35]}  Kxh8 {[%clk 0:06:06]}
37. Rc2 {[%clk 0:00:58]}  Reb8 {[%clk 0:06:21]} 38. Rh2+ {[%clk 0:00:57]}  Kg8 {[%clk 0:06:49]} 39. Ne7+ {[%clk 0:00:46]}  Kg7 {[%clk 0:07:15]}
40. Nc6 {[%clk 0:00:35]}  Ra8 {[%clk 0:06:33]} 41. Rc1 {[%clk 0:00:36]}  Ng6 {[%clk 0:02:55]} 42. Rh5 {[%clk 0:29:39]}  Rb6 {[%clk 0:33:04]}
43. Rxg5 {[%clk 0:30:00]}  Rxc6 {[%clk 0:33:30]} 44. f4 {[%clk 0:30:25]}  f6 {[%clk 0:33:52]} 0-1

[Event "2026 European Womens Championship"]
[Site "Batumi, GE"]
[Date "2026.05.30"]
[Round "6"]
[White "Kulon, Klaudia"]
[Black "Iglesias, Yosha"]
[Result "1-0"]
[Board "61"]
[TimeControl "5400+30"]
[WhiteFideId "1131044"]
[BlackFideId "637823"]
[WhiteElo "2377"]
[BlackElo "2325"]
[WhiteTitle "IM"]
[BlackTitle "FM"]
[WhiteClock "0:26:17"]
[BlackClock "0:01:44"]
[Variant "Standard"]

1. d4 {[%clk 1:28:58]}  d5 {[%clk 1:30:31]} 2. c4 {[%clk 1:29:17]}  c6 {[%clk 1:30:29]} 3. cxd5 {[%clk 1:29:34]}  cxd5 {[%clk 1:30:51]}
4. Nc3 {[%clk 1:29:58]}  Nf6 {[%clk 1:30:51]} 5. Nf3 {[%clk 1:30:17]}  Nc6 {[%clk 1:29:56]} 6. Bf4 {[%clk 1:30:30]}  a6 {[%clk 1:29:08]}
7. Ne5 {[%clk 1:30:30]}  Qb6 {[%clk 1:26:14]} 8. Nxc6 {[%clk 1:29:53]}  bxc6 {[%clk 1:26:28]} 9. a3 {[%clk 1:29:48]}  Qxb2 {[%clk 0:59:57]}
10. Na4 {[%clk 1:29:46]}  Qb5 {[%clk 0:58:40]} 11. f3 {[%clk 1:29:58]}  Qa5+ {[%clk 0:54:34]} 12. Kf2 {[%clk 1:30:23]}  e6 {[%clk 0:40:53]}
13. Qc2 {[%clk 1:24:04]}  c5 {[%clk 0:25:36]} 14. Nxc5 {[%clk 1:09:59]}  Bxc5 {[%clk 0:24:04]} 15. Qxc5 {[%clk 1:09:59]}  Qxc5 {[%clk 0:24:12]}
16. dxc5 {[%clk 1:10:25]}  Bd7 {[%clk 0:21:10]} 17. Bd6 {[%clk 1:07:49]}  Bc6 {[%clk 0:14:24]} 18. Rb1 {[%clk 1:07:05]}  Nd7 {[%clk 0:14:50]}
19. e3 {[%clk 1:03:18]}  f6 {[%clk 0:13:46]} 20. Bd3 {[%clk 1:02:56]}  Kf7 {[%clk 0:14:05]} 21. h4 {[%clk 1:02:28]}  Rhc8 {[%clk 0:13:33]}
22. Bxh7 {[%clk 0:51:46]}  Bb5 {[%clk 0:13:07]} 23. h5 {[%clk 0:51:00]}  Nxc5 {[%clk 0:11:55]} 24. Bg6+ {[%clk 0:51:23]}  Kg8 {[%clk 0:12:21]}
25. h6 {[%clk 0:51:13]}  gxh6 {[%clk 0:11:41]} 26. Rxh6 {[%clk 0:51:06]}  Kg7 {[%clk 0:11:31]} 27. Rbh1 {[%clk 0:37:16]}  Nd3+ {[%clk 0:11:51]}
28. Kg3 {[%clk 0:32:48]}  Rc6 {[%clk 0:07:41]} 29. Be7 {[%clk 0:29:12]}  Rc7 {[%clk 0:02:44]} 30. Rh7+ {[%clk 0:26:14]}  Kxg6 {[%clk 0:03:05]}
31. R1h6+ {[%clk 0:26:39]}  Kg5 {[%clk 0:01:17]} 32. Bxf6+ {[%clk 0:26:00]}  Kf5 {[%clk 0:01:44]} 33. Rxc7 {[%clk 0:26:17]} 1-0

[Event "2026 European Womens Championship"]
[Site "Batumi, GE"]
[Date "2026.05.30"]
[Round "6"]
[White "Mammadzada, Gunay"]
[Black "Krasteva, Beloslava"]
[Result "1/2-1/2"]
[Board "62"]
[TimeControl "5400+30"]
[WhiteFideId "13403729"]
[BlackFideId "2922029"]
[WhiteElo "2374"]
[BlackElo "2285"]
[WhiteTitle "IM"]
[BlackTitle "WGM"]
[WhiteClock "0:44:48"]
[BlackClock "0:25:23"]
[Variant "Standard"]

1. d4 {[%clk 1:30:01]}  d6 {[%clk 1:28:13]} 2. Nf3 {[%clk 1:29:51]}  Nf6 {[%clk 1:27:16]} 3. g3 {[%clk 1:30:17]}  g6 {[%clk 1:27:00]}
4. Bg2 {[%clk 1:30:37]}  Bg7 {[%clk 1:27:23]} 5. O-O {[%clk 1:31:01]}  O-O {[%clk 1:27:47]} 6. Re1 {[%clk 1:31:24]}  Nbd7 {[%clk 1:27:06]}
7. e4 {[%clk 1:31:26]}  e5 {[%clk 1:27:04]} 8. Nc3 {[%clk 1:31:51]}  b6 {[%clk 1:22:48]} 9. a4 {[%clk 1:22:27]}  a5 {[%clk 1:22:10]}
10. dxe5 {[%clk 1:16:55]}  dxe5 {[%clk 1:21:53]} 11. b3 {[%clk 1:17:14]}  Bb7 {[%clk 1:17:13]} 12. Ba3 {[%clk 1:17:32]}  Re8 {[%clk 1:17:29]}
13. Nd2 {[%clk 1:15:21]}  Bf8 {[%clk 1:10:34]} 14. Bb2 {[%clk 1:08:32]}  Nc5 {[%clk 1:07:03]} 15. Nc4 {[%clk 1:08:18]}  Nfd7 {[%clk 0:54:58]}
16. Nd5 {[%clk 1:01:39]}  Ba6 {[%clk 0:42:55]} 17. Nde3 {[%clk 0:52:05]}  Bg7 {[%clk 0:39:20]} 18. Re2 {[%clk 0:50:30]}  Bh6 {[%clk 0:31:31]}
19. Ng4 {[%clk 0:46:44]}  Bg7 {[%clk 0:30:58]} 20. Nge3 {[%clk 0:46:42]}  Bh6 {[%clk 0:31:21]} 21. Ng4 {[%clk 0:44:51]}  Bg7 {[%clk 0:31:14]}
22. Nge3 {[%clk 0:44:48]}  Bh6 {[%clk 0:25:23]} 1/2-1/2

[Event "2026 European Womens Championship"]
[Site "Batumi, GE"]
[Date "2026.05.30"]
[Round "6"]
[White "Mkrtchyan, Mariam"]
[Black "Chernyak, Viktoria"]
[Result "1-0"]
[Board "63"]
[TimeControl "5400+30"]
[WhiteFideId "13310828"]
[BlackFideId "24165956"]
[WhiteElo "2365"]
[BlackElo "2191"]
[WhiteTitle "WGM"]
[BlackTitle "WGM"]
[WhiteClock "0:03:58"]
[BlackClock "0:01:33"]
[Variant "Standard"]

1. e4 {[%clk 1:27:51]}  c6 {[%clk 1:30:53]} 2. d4 {[%clk 1:28:08]}  d5 {[%clk 1:31:21]} 3. Nc3 {[%clk 1:28:26]}  dxe4 {[%clk 1:31:47]}
4. Nxe4 {[%clk 1:28:51]}  Bf5 {[%clk 1:32:14]} 5. Ng3 {[%clk 1:29:03]}  Bg6 {[%clk 1:32:39]} 6. h4 {[%clk 1:29:04]}  h6 {[%clk 1:32:57]}
7. Nf3 {[%clk 1:29:00]}  e6 {[%clk 1:33:02]} 8. Ne5 {[%clk 1:24:26]}  Bh7 {[%clk 1:32:42]} 9. Bd3 {[%clk 1:22:46]}  Bxd3 {[%clk 1:27:33]}
10. Qxd3 {[%clk 1:23:09]}  Nd7 {[%clk 1:27:55]} 11. Qe2 {[%clk 1:23:21]}  Ngf6 {[%clk 1:25:14]} 12. Bf4 {[%clk 1:18:52]}  Bb4+ {[%clk 1:17:46]}
13. c3 {[%clk 1:18:09]}  Be7 {[%clk 1:18:03]} 14. O-O-O {[%clk 1:13:51]}  O-O {[%clk 1:12:32]} 15. Kb1 {[%clk 1:12:59]}  a5 {[%clk 1:09:13]}
16. Bc1 {[%clk 1:06:16]}  a4 {[%clk 0:58:31]} 17. a3 {[%clk 1:06:39]}  Qc7 {[%clk 0:49:46]} 18. f4 {[%clk 1:04:37]}  c5 {[%clk 0:49:45]}
19. f5 {[%clk 0:49:04]}  Ra6 {[%clk 0:42:26]} 20. Rh3 {[%clk 0:37:24]}  cxd4 {[%clk 0:35:21]} 21. Nxd7 {[%clk 0:36:20]}  Qxd7 {[%clk 0:34:58]}
22. Rxd4 {[%clk 0:35:53]}  Rd6 {[%clk 0:34:35]} 23. fxe6 {[%clk 0:31:03]}  fxe6 {[%clk 0:34:42]} 24. Rxd6 {[%clk 0:30:07]}  Bxd6 {[%clk 0:24:16]}
25. Ne4 {[%clk 0:29:01]}  Nxe4 {[%clk 0:18:10]} 26. Qxe4 {[%clk 0:29:27]}  Rf1 {[%clk 0:17:32]} 27. Rd3 {[%clk 0:25:12]}  Qe7 {[%clk 0:16:12]}
28. g3 {[%clk 0:24:40]}  Kh8 {[%clk 0:04:11]} 29. Qxa4 {[%clk 0:23:48]}  Qc7 {[%clk 0:03:42]} 30. Qe8+ {[%clk 0:20:02]}  Rf8 {[%clk 0:03:16]}
31. Qxe6 {[%clk 0:17:24]}  Bxg3 {[%clk 0:03:32]} 32. Bxh6 {[%clk 0:16:05]}  Rf1+ {[%clk 0:02:54]} 33. Kc2 {[%clk 0:15:21]}  Rf6 {[%clk 0:00:53]}
34. Qe8+ {[%clk 0:14:19]}  Kh7 {[%clk 0:01:22]} 35. Rd7 {[%clk 0:12:49]}  Rf2+ {[%clk 0:01:33]} 36. Bd2 {[%clk 0:11:31]}  Qa5 {[%clk 0:01:15]}
37. Qe4+ {[%clk 0:11:38]}  Kh8 {[%clk 0:01:01]} 38. Rd5 {[%clk 0:10:24]}  Qa8 {[%clk 0:00:37]} 39. Rh5+ {[%clk 0:05:32]}  Kg8 {[%clk 0:01:06]}
40. Qc4+ {[%clk 0:04:47]}  Rf7 {[%clk 0:01:33]} 41. Rc5 {[%clk 0:03:58]} 1-0

[Event "2026 European Womens Championship"]
[Site "Batumi, GE"]
[Date "2026.05.30"]
[Round "6"]
[White "Kobak, Polina"]
[Black "Milliet, Sophie"]
[Result "1/2-1/2"]
[Board "64"]
[TimeControl "5400+30"]
[WhiteFideId "24269727"]
[BlackFideId "623725"]
[WhiteElo "1986"]
[BlackElo "2361"]
[WhiteTitle "WFM"]
[BlackTitle "IM"]
[WhiteClock "0:02:14"]
[BlackClock "0:10:27"]
[Variant "Standard"]

1. d4 {[%clk 1:30:57]}  Nf6 {[%clk 1:30:53]} 2. c4 {[%clk 1:31:23]}  e6 {[%clk 1:31:18]} 3. Nf3 {[%clk 1:31:49]}  Bb4+ {[%clk 1:31:42]}
4. Nbd2 {[%clk 1:31:29]}  d5 {[%clk 1:31:48]} 5. Qa4+ {[%clk 1:31:16]}  Nc6 {[%clk 1:32:13]} 6. e3 {[%clk 1:31:28]}  a5 {[%clk 1:32:03]}
7. a3 {[%clk 1:28:42]}  Be7 {[%clk 1:32:22]} 8. Ne5 {[%clk 1:17:06]}  Bd7 {[%clk 1:24:20]} 9. Nxd7 {[%clk 1:16:47]}  Qxd7 {[%clk 1:20:42]}
10. cxd5 {[%clk 1:13:22]}  exd5 {[%clk 1:20:33]} 11. Bb5 {[%clk 1:13:04]}  O-O {[%clk 1:20:23]} 12. Nf3 {[%clk 1:07:19]}  Bd6 {[%clk 1:20:08]}
13. O-O {[%clk 1:06:02]}  Rfe8 {[%clk 1:05:30]} 14. Bd2 {[%clk 1:03:46]}  Ne4 {[%clk 1:05:51]} 15. Rfc1 {[%clk 0:47:40]}  Re6 {[%clk 1:05:05]}
16. Bb4 {[%clk 0:43:06]}  Rg6 {[%clk 0:46:41]} 17. Bxd6 {[%clk 0:42:14]}  cxd6 {[%clk 0:42:54]} 18. Ne1 {[%clk 0:25:48]}  Rc8 {[%clk 0:31:58]}
19. Rc2 {[%clk 0:19:19]}  h5 {[%clk 0:23:58]} 20. Rac1 {[%clk 0:17:10]}  Rc7 {[%clk 0:16:43]} 21. f3 {[%clk 0:13:46]}  Ng5 {[%clk 0:16:30]}
22. Bxc6 {[%clk 0:11:51]}  bxc6 {[%clk 0:16:56]} 23. Qxa5 {[%clk 0:10:47]}  Qe7 {[%clk 0:15:39]} 24. Qd2 {[%clk 0:08:56]}  c5 {[%clk 0:15:03]}
25. b4 {[%clk 0:07:14]}  c4 {[%clk 0:15:31]} 26. a4 {[%clk 0:07:08]}  Qf6 {[%clk 0:15:52]} 27. b5 {[%clk 0:06:00]}  Nxf3+ {[%clk 0:14:57]}
28. Nxf3 {[%clk 0:06:25]}  Qxf3 {[%clk 0:15:25]} 29. b6 {[%clk 0:06:21]}  Rb7 {[%clk 0:13:21]} 30. a5 {[%clk 0:06:42]}  h4 {[%clk 0:13:14]}
31. Rf1 {[%clk 0:03:52]}  Qe4 {[%clk 0:13:01]} 32. Rf4 {[%clk 0:03:03]}  Qe7 {[%clk 0:13:14]} 33. Rb2 {[%clk 0:02:35]}  h3 {[%clk 0:13:38]}
34. g3 {[%clk 0:02:50]}  Qd8 {[%clk 0:09:26]} 35. a6 {[%clk 0:01:16]}  Rxb6 {[%clk 0:09:55]} 36. Qa5 {[%clk 0:01:20]}  Qe7 {[%clk 0:10:12]}
37. Rxb6 {[%clk 0:00:36]}  Qxe3+ {[%clk 0:10:36]} 38. Rf2 {[%clk 0:00:45]}  Qc1+ {[%clk 0:10:07]} 39. Rf1 {[%clk 0:01:08]}  Qe3+ {[%clk 0:10:18]}
40. Rf2 {[%clk 0:01:26]}  Qc1+ {[%clk 0:10:13]} 41. Rf1 {[%clk 0:01:51]}  Qe3+ {[%clk 0:10:27]} 42. Rf2 {[%clk 0:02:14]} 1/2-1/2